[Event "*** SCC Grand Prix: Titled Tuesday Blitz"]
[Site "Chess.com"]
[Date "2020.09.29"]
[Round "4"]
[White "ExtremeLearner"]
[Black "Schandenfreude"]
[Result "1-0"]
[WhiteElo "2313"]
[BlackElo "2569"]
[TimeControl "180+1"]
[EndTime "10:41:09 PDT"]
[Termination "ExtremeLearner won on time"]

1. d4 {[%clk 0:03:00.9]} 1... Nf6 {[%clk 0:02:59.2]} 2. Nf3 {[%clk 0:03:00.9]}
2... e6 {[%clk 0:02:59.2]} 3. g3 {[%clk 0:03:00]} 3... b5 {[%clk 0:02:58.5]} 4.
Bg2 {[%clk 0:02:58]} 4... Bb7 {[%clk 0:02:58.7]} 5. O-O {[%clk 0:02:56.9]} 5...
c5 {[%clk 0:02:55.5]} 6. dxc5 {[%clk 0:02:55.6]} 6... Bxc5 {[%clk 0:02:54.8]} 7.
a4 {[%clk 0:02:51]} 7... b4 {[%clk 0:02:53.9]} 8. b3 {[%clk 0:02:48.2]} 8... O-O
{[%clk 0:02:52.6]} 9. Bb2 {[%clk 0:02:47.6]} 9... d5 {[%clk 0:02:52.6]} 10. Ne5
{[%clk 0:02:43.2]} 10... Nc6 {[%clk 0:02:48.5]} 11. Nd2 {[%clk 0:02:41.8]} 11...
Nxe5 {[%clk 0:02:47.9]} 12. Bxe5 {[%clk 0:02:42.7]} 12... Rc8 {[%clk 0:02:48]}
13. h4 {[%clk 0:02:40.4]} 13... Be7 {[%clk 0:02:47.3]} 14. Nf3 {[%clk
0:02:38.6]} 14... Ne4 {[%clk 0:02:43.1]} 15. Bd4 {[%clk 0:02:30.6]} 15... Bf6
{[%clk 0:02:36.5]} 16. Ne5 {[%clk 0:02:24.5]} 16... Qc7 {[%clk 0:02:23]} 17. Ng4
{[%clk 0:02:12.5]} 17... Bxd4 {[%clk 0:01:25.5]} 18. Qxd4 {[%clk 0:02:13.4]}
18... Qc5 {[%clk 0:01:25.7]} 19. Qxc5 {[%clk 0:01:46.1]} 19... Nxc5 {[%clk
0:01:25.5]} 20. Ne3 {[%clk 0:01:41.9]} 20... Nd7 {[%clk 0:01:17.9]} 21. a5
{[%clk 0:01:40.4]} 21... Ba6 {[%clk 0:01:15.8]} 22. Ra4 {[%clk 0:01:32.5]} 22...
Rb8 {[%clk 0:01:08.5]} 23. Bf3 {[%clk 0:01:27.2]} 23... Rfc8 {[%clk 0:01:06.8]}
24. Rd1 {[%clk 0:01:26.3]} 24... Ne5 {[%clk 0:01:02.6]} 25. Rd4 {[%clk
0:01:23.9]} 25... Nc6 {[%clk 0:00:57.5]} 26. Rd2 {[%clk 0:01:18.5]} 26... Rb5
{[%clk 0:00:56.4]} 27. Rd1 {[%clk 0:01:02.2]} 27... Rxa5 {[%clk 0:00:49.9]} 28.
Rxa5 {[%clk 0:01:02]} 28... Nxa5 {[%clk 0:00:50.8]} 29. Ra1 {[%clk 0:01:02.8]}
29... Rc5 {[%clk 0:00:51]} 30. Ng4 {[%clk 0:00:58.9]} 30... f6 {[%clk
0:00:42.4]} 31. Ra4 {[%clk 0:00:52.8]} 31... Rb5 {[%clk 0:00:20.6]} 32. e4
{[%clk 0:00:24.4]} 32... Bb7 {[%clk 0:00:19.2]} 33. exd5 {[%clk 0:00:14]} 33...
Bxd5 {[%clk 0:00:18.4]} 34. Be2 {[%clk 0:00:14.2]} 34... Rc5 {[%clk 0:00:18.5]}
35. Ne3 {[%clk 0:00:11.6]} 35... Nc6 {[%clk 0:00:17.2]} 36. Ra6 {[%clk
0:00:10.7]} 36... Nd4 {[%clk 0:00:16]} 37. Bd3 {[%clk 0:00:07.1]} 37... Rc7
{[%clk 0:00:12]} 38. Nxd5 {[%clk 0:00:07.4]} 38... exd5 {[%clk 0:00:12.1]} 39.
Rd6 {[%clk 0:00:07.9]} 39... g6 {[%clk 0:00:10.8]} 40. Rxd5 {[%clk 0:00:07.8]}
40... Nxc2 {[%clk 0:00:11.3]} 41. Bxc2 {[%clk 0:00:07.4]} 41... Rxc2 {[%clk
0:00:10.9]} 42. Rb5 {[%clk 0:00:08]} 42... a5 {[%clk 0:00:09.4]} 43. Rxa5 {[%clk
0:00:08.1]} 43... Rb2 {[%clk 0:00:10]} 44. Ra6 {[%clk 0:00:08.4]} 44... f5
{[%clk 0:00:08.8]} 45. Kg2 {[%clk 0:00:05.6]} 45... Rxb3 {[%clk 0:00:08.9]} 46.
Rb6 {[%clk 0:00:05.2]} 46... Kg7 {[%clk 0:00:09.2]} 47. Kh3 {[%clk 0:00:03.9]}
47... Kh6 {[%clk 0:00:07.8]} 48. Kg2 {[%clk 0:00:02.4]} 48... Rb2 {[%clk
0:00:06.5]} 49. Rb7 {[%clk 0:00:03.3]} 49... Rb3 {[%clk 0:00:03.9]} 50. Kg1
{[%clk 0:00:03.2]} 50... f4 {[%clk 0:00:03.2]} 51. Kg2 {[%clk 0:00:04.1]} 51...
f3+ {[%clk 0:00:02.8]} 52. Kh3 {[%clk 0:00:04]} 52... Rb2 {[%clk 0:00:03.2]} 53.
Kg4 {[%clk 0:00:04.1]} 53... Rc2 {[%clk 0:00:02.1]} 54. Kxf3 {[%clk 0:00:03.7]}
54... Rc3+ {[%clk 0:00:02.6]} 55. Kg4 {[%clk 0:00:03.1]} 55... Rc4+ {[%clk
0:00:02.2]} 56. Kh3 {[%clk 0:00:02.6]} 56... g5 {[%clk 0:00:02.3]} 57. f3 {[%clk
0:00:01.9]} 57... gxh4 {[%clk 0:00:02.4]} 58. g4 {[%clk 0:00:02.8]} 58... Kg6
{[%clk 0:00:02.8]} 59. Kxh4 {[%clk 0:00:03.7]} 59... h5 {[%clk 0:00:03.2]} 60.
Rb6+ {[%clk 0:00:03.2]} 60... Kg7 {[%clk 0:00:03.3]} 61. Kxh5 {[%clk 0:00:04.1]}
61... Rf4 {[%clk 0:00:03.2]} 62. Rb7+ {[%clk 0:00:03.3]} 62... Kf8 {[%clk
0:00:03.1]} 63. Kg5 {[%clk 0:00:04.2]} 63... Rxf3 {[%clk 0:00:03.5]} 64. Rxb4
{[%clk 0:00:04.8]} 64... Ra3 {[%clk 0:00:03.4]} 65. Rb8+ {[%clk 0:00:04.3]}
65... Kf7 {[%clk 0:00:03.8]} 66. Rb7+ {[%clk 0:00:05.2]} 66... Kg8 {[%clk
0:00:03.9]} 67. Kh5 {[%clk 0:00:04.5]} 67... Ra1 {[%clk 0:00:03.7]} 68. g5
{[%clk 0:00:03.1]} 68... Kf8 {[%clk 0:00:04.3]} 69. Kg6 {[%clk 0:00:03]} 69...
Ra6+ {[%clk 0:00:03.8]} 70. Kh7 {[%clk 0:00:03.2]} 70... Ra1 {[%clk 0:00:03.7]}
71. Rb8+ {[%clk 0:00:02.7]} 71... Ke7 {[%clk 0:00:04.2]} 72. g6 {[%clk
0:00:03.2]} 72... Rh1+ {[%clk 0:00:04.4]} 73. Kg8 {[%clk 0:00:03.7]} 73... Kf6
{[%clk 0:00:04.4]} 74. Rb6+ {[%clk 0:00:03.7]} 74... Kg5 {[%clk 0:00:03.8]} 75.
g7 {[%clk 0:00:04.2]} 75... Ra1 {[%clk 0:00:02.8]} 76. Kh7 {[%clk 0:00:03.2]}
76... Rh1+ {[%clk 0:00:02.3]} 77. Kg8 {[%clk 0:00:03.7]} 77... Ra1 {[%clk
0:00:02.6]} 78. Re6 {[%clk 0:00:04.2]} 78... Ra8+ {[%clk 0:00:02.3]} 79. Kf7
{[%clk 0:00:04.5]} 79... Ra7+ {[%clk 0:00:02.4]} 80. Re7 {[%clk 0:00:05]} 1-0

[Event "*** SCC Grand Prix: Titled Tuesday Blitz"]
[Site "Chess.com"]
[Date "2020.09.29"]
[Round "4"]
[White "francyIM"]
[Black "ChessWarrior7197"]
[Result "1/2-1/2"]
[WhiteElo "2763"]
[BlackElo "2949"]
[TimeControl "180+1"]
[EndTime "10:41:21 PDT"]
[Termination "Game drawn by repetition"]

1. c4 {[%clk 0:03:00.9]} 1... c6 {[%clk 0:02:59.7]} 2. Nf3 {[%clk 0:03:00.6]}
2... d5 {[%clk 0:03:00]} 3. d4 {[%clk 0:03:00.5]} 3... Nf6 {[%clk 0:02:59.9]} 4.
e3 {[%clk 0:03:00.8]} 4... e6 {[%clk 0:02:59.8]} 5. Nbd2 {[%clk 0:02:57.9]} 5...
Nbd7 {[%clk 0:02:57.1]} 6. b3 {[%clk 0:02:57.9]} 6... Ne4 {[%clk 0:02:57]} 7.
Bd3 {[%clk 0:02:54.4]} 7... f5 {[%clk 0:02:57]} 8. O-O {[%clk 0:02:54.1]} 8...
Bd6 {[%clk 0:02:56.9]} 9. Bb2 {[%clk 0:02:53.8]} 9... Qf6 {[%clk 0:02:56.4]} 10.
cxd5 {[%clk 0:02:43.9]} 10... exd5 {[%clk 0:02:55]} 11. Ne1 {[%clk 0:02:41.1]}
11... O-O {[%clk 0:02:54]} 12. f4 {[%clk 0:02:39.6]} 12... g5 {[%clk 0:02:28.1]}
13. g3 {[%clk 0:02:36.4]} 13... g4 {[%clk 0:02:23.4]} 14. Be2 {[%clk 0:02:33.5]}
14... h5 {[%clk 0:02:22.1]} 15. Nd3 {[%clk 0:02:33.4]} 15... h4 {[%clk
0:02:21.5]} 16. Nxe4 {[%clk 0:02:31.4]} 16... dxe4 {[%clk 0:02:19.4]} 17. Ne5
{[%clk 0:02:31.7]} 17... Nb6 {[%clk 0:02:19.9]} 18. Bc4+ {[%clk 0:02:19]} 18...
Be6 {[%clk 0:02:10.8]} 19. Qe2 {[%clk 0:01:51]} 19... Nd5 {[%clk 0:02:08]} 20.
Bxd5 {[%clk 0:01:37.6]} 20... cxd5 {[%clk 0:02:07.6]} 21. Rac1 {[%clk
0:01:35.1]} 21... Rae8 {[%clk 0:01:51.9]} 22. Bc3 {[%clk 0:01:22.3]} 22... Re7
{[%clk 0:01:49.7]} 23. Be1 {[%clk 0:01:22]} 23... hxg3 {[%clk 0:01:42.8]} 24.
Bxg3 {[%clk 0:01:18.3]} 24... Kg7 {[%clk 0:01:36.2]} 25. h3 {[%clk 0:01:10.2]}
25... Qh6 {[%clk 0:01:23]} 26. hxg4 {[%clk 0:01:08]} 26... fxg4 {[%clk
0:01:23.9]} 27. Qh2 {[%clk 0:01:06.6]} 27... Qxh2+ {[%clk 0:01:07.5]} 28. Kxh2
{[%clk 0:00:56.4]} 28... Bf5 {[%clk 0:01:05.4]} 29. Bh4 {[%clk 0:00:41.9]} 29...
Rh8 {[%clk 0:01:01]} 30. Kg3 {[%clk 0:00:39.2]} 30... Re6 {[%clk 0:01:01.6]} 31.
Rh1 {[%clk 0:00:20.5]} 31... Reh6 {[%clk 0:01:01.6]} 32. Rh2 {[%clk 0:00:20.7]}
32... a5 {[%clk 0:00:41.7]} 33. Rch1 {[%clk 0:00:20.6]} 33... Rc8 {[%clk
0:00:41]} 34. Bg5 {[%clk 0:00:19.9]} 34... Rh3+ {[%clk 0:00:39]} 35. Rxh3 {[%clk
0:00:19.1]} 35... gxh3 {[%clk 0:00:39.9]} 36. Ng4 {[%clk 0:00:18.4]} 36... Rc2
{[%clk 0:00:31.8]} 37. Rxh3 {[%clk 0:00:17.9]} 37... Rc1 {[%clk 0:00:30.6]} 38.
Kh4 {[%clk 0:00:15.5]} 38... Rg1 {[%clk 0:00:27.6]} 39. Rg3 {[%clk 0:00:15.3]}
39... Rh1+ {[%clk 0:00:28]} 40. Rh3 {[%clk 0:00:15.6]} 40... Ra1 {[%clk
0:00:28.5]} 41. Rg3 {[%clk 0:00:14.6]} 41... Rxa2 {[%clk 0:00:24.1]} 42. Bh6+
{[%clk 0:00:14.5]} 42... Kh7 {[%clk 0:00:22.9]} 43. Bg5 {[%clk 0:00:06.3]} 43...
Rh2+ {[%clk 0:00:23.3]} 44. Nxh2 {[%clk 0:00:05.9]} 44... b5 {[%clk 0:00:21.6]}
45. Ng4 {[%clk 0:00:06.8]} 45... Kg6 {[%clk 0:00:19.9]} 46. Nf6 {[%clk
0:00:07.7]} 46... Kf7 {[%clk 0:00:20.4]} 47. Nxd5 {[%clk 0:00:07.9]} 47... a4
{[%clk 0:00:21]} 48. bxa4 {[%clk 0:00:07.8]} 48... bxa4 {[%clk 0:00:21.9]} 49.
Nc3 {[%clk 0:00:08.7]} 49... a3 {[%clk 0:00:21.7]} 50. Rg2 {[%clk 0:00:09.2]}
50... Bb4 {[%clk 0:00:21.4]} 51. Nb5 {[%clk 0:00:08.3]} 51... Be6 {[%clk
0:00:16.9]} 52. Nxa3 {[%clk 0:00:08.6]} 52... Bxa3 {[%clk 0:00:17.8]} 53. Bh6
{[%clk 0:00:08.6]} 53... Bb4 {[%clk 0:00:17]} 54. Rg7+ {[%clk 0:00:08.8]} 54...
Kf6 {[%clk 0:00:17.9]} 55. Rb7 {[%clk 0:00:09]} 55... Be1+ {[%clk 0:00:18.1]}
56. Kh5 {[%clk 0:00:07.2]} 56... Bc4 {[%clk 0:00:16.2]} 57. Rb6+ {[%clk
0:00:06.9]} 57... Kf5 {[%clk 0:00:15.7]} 58. Bg5 {[%clk 0:00:06.9]} 58... Be2+
{[%clk 0:00:15.7]} 59. Kh6 {[%clk 0:00:06.9]} 59... Bf2 {[%clk 0:00:16.6]} 60.
Rf6+ {[%clk 0:00:06.9]} 60... Kg4 {[%clk 0:00:15.8]} 61. f5 {[%clk 0:00:01.7]}
61... Bc4 {[%clk 0:00:15]} 62. d5 {[%clk 0:00:01.4]} 62... Bxd5 {[%clk
0:00:15.3]} 63. Kg6 {[%clk 0:00:02.3]} 63... Bc4 {[%clk 0:00:15.1]} 64. Rd6
{[%clk 0:00:03.2]} 64... Bg3 {[%clk 0:00:14.6]} 65. f6 {[%clk 0:00:04.1]} 65...
Bxd6 {[%clk 0:00:14.3]} 66. Bh6 {[%clk 0:00:04.4]} 66... Kf3 {[%clk 0:00:14.1]}
67. f7 {[%clk 0:00:05]} 67... Bxf7+ {[%clk 0:00:14.3]} 68. Kxf7 {[%clk
0:00:05.9]} 68... Bc5 {[%clk 0:00:15.1]} 69. Bg7 {[%clk 0:00:06.3]} 69... Bxe3
{[%clk 0:00:16]} 70. Ke6 {[%clk 0:00:05.8]} 70... Bf4 {[%clk 0:00:16.4]} 71. Bd4
{[%clk 0:00:05.8]} 71... Be3 {[%clk 0:00:16.4]} 72. Be5 {[%clk 0:00:05.2]} 72...
Ke2 {[%clk 0:00:16]} 73. Kf5 {[%clk 0:00:05.2]} 73... Kf3 {[%clk 0:00:16.3]} 74.
Bf6 {[%clk 0:00:05.4]} 74... Bf2 {[%clk 0:00:16.4]} 75. Bg5 {[%clk 0:00:05.8]}
75... Be3 {[%clk 0:00:17.3]} 76. Bf6 {[%clk 0:00:06.1]} 76... Bd2 {[%clk
0:00:17.7]} 77. Bd4 {[%clk 0:00:06]} 77... Bc1 {[%clk 0:00:18.1]} 78. Bc5 {[%clk
0:00:06.3]} 78... Be3 {[%clk 0:00:17.5]} 79. Be7 {[%clk 0:00:06.4]} 79... Bf4
{[%clk 0:00:13.5]} 80. Bc5 {[%clk 0:00:06.4]} 80... Bg3 {[%clk 0:00:14.4]} 81.
Bb6 {[%clk 0:00:06.4]} 81... Bd6 {[%clk 0:00:14.4]} 82. Bd4 {[%clk 0:00:06.5]}
82... Bb4 {[%clk 0:00:14.6]} 83. Ke5 {[%clk 0:00:05.6]} 83... Ba3 {[%clk
0:00:12.3]} 84. Kf5 {[%clk 0:00:05.9]} 84... Bc1 {[%clk 0:00:12.6]} 85. Bc5
{[%clk 0:00:05.8]} 85... Bd2 {[%clk 0:00:12.9]} 86. Bd4 {[%clk 0:00:05.8]} 86...
Bb4 {[%clk 0:00:13.2]} 87. Bb6 {[%clk 0:00:05.3]} 87... Ba3 {[%clk 0:00:12.9]}
88. Bd4 {[%clk 0:00:05.5]} 88... Bf8 {[%clk 0:00:13]} 89. Bb6 {[%clk 0:00:05.6]}
89... Bh6 {[%clk 0:00:13.9]} 90. Bd4 {[%clk 0:00:05.8]} 90... Be3 {[%clk
0:00:14.3]} 91. Bf6 {[%clk 0:00:06]} 1/2-1/2

[Event "*** SCC Grand Prix: Titled Tuesday Blitz"]
[Site "Chess.com"]
[Date "2020.09.29"]
[Round "5"]
[White "memer5334"]
[Black "Trovita84"]
[Result "0-1"]
[WhiteElo "2167"]
[BlackElo "1983"]
[TimeControl "180+1"]
[EndTime "10:49:45 PDT"]
[Termination "Trovita84 won by resignation"]

1. d4 {[%clk 0:03:00.9]} 1... e6 {[%clk 0:02:54.5]} 2. e4 {[%clk 0:03:00.4]}
2... d5 {[%clk 0:02:52.8]} 3. e5 {[%clk 0:02:57.8]} 3... c5 {[%clk 0:02:47.6]}
4. c3 {[%clk 0:02:57.7]} 4... Nc6 {[%clk 0:02:45.6]} 5. f4 {[%clk 0:02:56.3]}
5... Qb6 {[%clk 0:02:44.6]} 6. Nf3 {[%clk 0:02:54.9]} 6... Nh6 {[%clk
0:02:39.8]} 7. Bd3 {[%clk 0:02:51.2]} 7... cxd4 {[%clk 0:02:37.4]} 8. cxd4
{[%clk 0:02:48.7]} 8... Bd7 {[%clk 0:02:37.4]} 9. Nc3 {[%clk 0:02:42.4]} 9...
Nxd4 {[%clk 0:02:34.3]} 10. Nxd4 {[%clk 0:02:38.7]} 10... Qxd4 {[%clk
0:02:35.2]} 11. Nb5 {[%clk 0:02:34.5]} 11... Qb6 {[%clk 0:02:23.5]} 12. Bd2
{[%clk 0:02:29.8]} 12... Bxb5 {[%clk 0:02:19.3]} 0-1

[Event "*** SCC Grand Prix: Titled Tuesday Blitz"]
[Site "Chess.com"]
[Date "2020.09.29"]
[Round "5"]
[White "DishonorOnYourCow"]
[Black "PLAYER_2006_M"]
[Result "1-0"]
[WhiteElo "2404"]
[BlackElo "2552"]
[TimeControl "180+1"]
[EndTime "10:50:27 PDT"]
[Termination "DishonorOnYourCow won by resignation"]

1. d4 {[%clk 0:03:00.9]} 1... e6 {[%clk 0:02:56.9]} 2. c4 {[%clk 0:03:00.7]}
2... b6 {[%clk 0:02:54.9]} 3. Nf3 {[%clk 0:02:59.7]} 3... Nf6 {[%clk 0:02:54.1]}
4. g3 {[%clk 0:02:59.2]} 4... Ba6 {[%clk 0:02:53.2]} 5. Qc2 {[%clk 0:02:55.6]}
5... Bb4+ {[%clk 0:02:50.2]} 6. Bd2 {[%clk 0:02:52.9]} 6... Be7 {[%clk
0:02:50.2]} 7. Bg2 {[%clk 0:02:50.5]} 7... O-O {[%clk 0:02:50.5]} 8. O-O {[%clk
0:02:48]} 8... c6 {[%clk 0:02:50.6]} 9. b3 {[%clk 0:02:47.1]} 9... d5 {[%clk
0:02:50.2]} 10. Bf4 {[%clk 0:02:41.2]} 10... Nbd7 {[%clk 0:02:49.7]} 11. Nbd2
{[%clk 0:02:30.9]} 11... Rc8 {[%clk 0:02:48.7]} 12. Rac1 {[%clk 0:02:29.2]}
12... Ba3 {[%clk 0:02:47.2]} 13. Rcd1 {[%clk 0:02:29]} 13... Qe7 {[%clk
0:02:47.2]} 14. Ne5 {[%clk 0:02:27]} 14... Nxe5 {[%clk 0:02:44.9]} 15. Bxe5
{[%clk 0:02:27.9]} 15... Bd6 {[%clk 0:02:43.3]} 16. e4 {[%clk 0:02:18.8]} 16...
dxc4 {[%clk 0:02:39.3]} 17. Bxd6 {[%clk 0:02:12.7]} 17... Qxd6 {[%clk
0:02:39.7]} 18. e5 {[%clk 0:02:11.9]} 18... Qxd4 {[%clk 0:02:38.3]} 19. Nxc4
{[%clk 0:02:07.3]} 19... Qc5 {[%clk 0:02:23.7]} 20. exf6 {[%clk 0:02:06.8]}
20... b5 {[%clk 0:02:23.8]} 21. Ne3 {[%clk 0:02:06.8]} 21... Qc3 {[%clk
0:02:24]} 22. Qxc3 {[%clk 0:02:06.6]} 1-0

[Event "*** SCC Grand Prix: Titled Tuesday Blitz"]
[Site "Chess.com"]
[Date "2020.09.29"]
[Round "5"]
[White "lider34"]
[Black "Nikolaj_6"]
[Result "1-0"]
[WhiteElo "2408"]
[BlackElo "2562"]
[TimeControl "180+1"]
[EndTime "10:50:45 PDT"]
[Termination "lider34 won by resignation"]

1. e4 {[%clk 0:03:00.9]} 1... c5 {[%clk 0:02:59.8]} 2. c3 {[%clk 0:02:58.8]}
2... Nf6 {[%clk 0:02:58.6]} 3. e5 {[%clk 0:02:57.4]} 3... Nd5 {[%clk 0:02:58.8]}
4. d4 {[%clk 0:02:57.6]} 4... cxd4 {[%clk 0:02:58.3]} 5. Nf3 {[%clk 0:02:57.3]}
5... e6 {[%clk 0:02:58.2]} 6. cxd4 {[%clk 0:02:56.4]} 6... b6 {[%clk 0:02:57.9]}
7. Nc3 {[%clk 0:02:52.9]} 7... Nxc3 {[%clk 0:02:56.9]} 8. bxc3 {[%clk
0:02:53.2]} 8... Qc7 {[%clk 0:02:56.2]} 9. Bd2 {[%clk 0:02:52.3]} 9... Bb7
{[%clk 0:02:52.8]} 10. Bd3 {[%clk 0:02:51.5]} 10... d6 {[%clk 0:02:52.8]} 11.
O-O {[%clk 0:02:18.3]} 11... Nd7 {[%clk 0:02:50.2]} 12. Ng5 {[%clk 0:02:17.9]}
12... dxe5 {[%clk 0:02:43.5]} 13. Qh5 {[%clk 0:02:17.3]} 13... Nf6 {[%clk
0:02:39.1]} 14. Bb5+ {[%clk 0:02:11.7]} 14... Kd8 {[%clk 0:02:27]} 15. Qxf7
{[%clk 0:02:05.8]} 15... Qxf7 {[%clk 0:02:02.8]} 16. Nxf7+ {[%clk 0:02:05]}
16... Ke7 {[%clk 0:02:03]} 17. Nxh8 {[%clk 0:02:05.3]} 17... exd4 {[%clk
0:01:59.9]} 18. cxd4 {[%clk 0:02:05.3]} 18... g6 {[%clk 0:02:00.2]} 19. Bb4+
{[%clk 0:02:03.3]} 1-0

[Event "*** SCC Grand Prix: Titled Tuesday Blitz"]
[Site "Chess.com"]
[Date "2020.09.29"]
[Round "5"]
[White "Violord"]
[Black "Sjakkerntobi"]
[Result "1-0"]
[WhiteElo "2697"]
[BlackElo "2424"]
[TimeControl "180+1"]
[EndTime "10:51:24 PDT"]
[Termination "Violord won by resignation"]

1. Nf3 {[%clk 0:02:59.1]} 1... e6 {[%clk 0:02:59.8]} 2. g3 {[%clk 0:02:58.2]}
2... Nf6 {[%clk 0:02:58.7]} 3. Bg2 {[%clk 0:02:58]} 3... d5 {[%clk 0:02:59.5]}
4. O-O {[%clk 0:02:57.7]} 4... Be7 {[%clk 0:02:59.7]} 5. c4 {[%clk 0:02:57.7]}
5... dxc4 {[%clk 0:02:56.2]} 6. Na3 {[%clk 0:02:56.9]} 6... a6 {[%clk
0:02:54.1]} 7. Nxc4 {[%clk 0:02:55.8]} 7... b5 {[%clk 0:02:54.5]} 8. Nfe5 {[%clk
0:02:49.1]} 8... Nd5 {[%clk 0:02:53.9]} 9. Ne3 {[%clk 0:02:45.9]} 9... Bb7
{[%clk 0:02:52.6]} 10. Nxd5 {[%clk 0:02:41.5]} 10... Bxd5 {[%clk 0:02:52]} 11.
e4 {[%clk 0:02:40.9]} 11... Bb7 {[%clk 0:02:50.6]} 12. d4 {[%clk 0:02:41]} 12...
O-O {[%clk 0:02:49.3]} 13. Be3 {[%clk 0:02:38.4]} 13... Nd7 {[%clk 0:02:45.1]}
14. Nd3 {[%clk 0:02:38.9]} 14... Rc8 {[%clk 0:02:38.3]} 15. Rc1 {[%clk
0:02:37.9]} 15... Nf6 {[%clk 0:02:33.2]} 16. f3 {[%clk 0:02:37.1]} 16... Ne8
{[%clk 0:02:21.4]} 17. Qe2 {[%clk 0:02:33.9]} 17... Ba8 {[%clk 0:02:09.2]} 18.
Rfd1 {[%clk 0:02:32.7]} 18... Nd6 {[%clk 0:02:07.8]} 19. Bf2 {[%clk 0:02:30.3]}
19... Nc4 {[%clk 0:01:59.1]} 20. b3 {[%clk 0:02:29.2]} 20... Nb6 {[%clk
0:01:59]} 21. Nc5 {[%clk 0:02:28.2]} 21... Qd6 {[%clk 0:01:26.9]} 22. Nxa6
{[%clk 0:02:24.9]} 22... f5 {[%clk 0:01:25.2]} 23. Nc5 {[%clk 0:02:23.6]} 23...
f4 {[%clk 0:01:21.4]} 24. Bh3 {[%clk 0:02:20.3]} 24... Bxe4 {[%clk 0:01:16.4]}
1-0

[Event "*** SCC Grand Prix: Titled Tuesday Blitz"]
[Site "Chess.com"]
[Date "2020.09.29"]
[Round "5"]
[White "dianamirza"]
[Black "misterlamine"]
[Result "0-1"]
[WhiteElo "1962"]
[BlackElo "2309"]
[TimeControl "180+1"]
[EndTime "10:51:37 PDT"]
[Termination "misterlamine won by resignation"]

1. d4 {[%clk 0:03:00.9]} 1... Nf6 {[%clk 0:02:58.9]} 2. Nf3 {[%clk 0:02:57.9]}
2... g5 {[%clk 0:02:58.8]} 3. Nxg5 {[%clk 0:02:56.5]} 3... d6 {[%clk 0:02:55.9]}
4. Nf3 {[%clk 0:02:47.1]} 4... Nc6 {[%clk 0:02:45.9]} 5. e3 {[%clk 0:02:44.8]}
5... Bg4 {[%clk 0:02:45.9]} 6. Be2 {[%clk 0:02:43.4]} 6... Qd7 {[%clk
0:02:46.2]} 7. h3 {[%clk 0:02:30.2]} 7... Bh5 {[%clk 0:02:45]} 8. g4 {[%clk
0:02:28]} 8... Bg6 {[%clk 0:02:44.7]} 9. c4 {[%clk 0:02:23.4]} 9... h5 {[%clk
0:02:42.6]} 10. g5 {[%clk 0:02:19.8]} 10... Ne4 {[%clk 0:02:42.4]} 11. Nc3
{[%clk 0:02:17]} 11... h4 {[%clk 0:02:39.6]} 12. Nxe4 {[%clk 0:02:15.2]} 12...
Bxe4 {[%clk 0:02:40.5]} 13. Qb3 {[%clk 0:02:11]} 13... O-O-O {[%clk 0:02:39.2]}
14. Bd2 {[%clk 0:02:07.2]} 14... Qf5 {[%clk 0:02:38.4]} 15. Qd1 {[%clk
0:01:58.3]} 15... Bc2 {[%clk 0:02:38.2]} 16. Qc1 {[%clk 0:01:55.3]} 16... Be4
{[%clk 0:02:37.8]} 17. Qd1 {[%clk 0:01:54.6]} 17... e5 {[%clk 0:02:37.4]} 18. d5
{[%clk 0:01:53.1]} 18... Ne7 {[%clk 0:02:35]} 19. Rg1 {[%clk 0:01:53]} 19...
Qxh3 {[%clk 0:02:31.8]} 20. b4 {[%clk 0:01:40.9]} 20... Kb8 {[%clk 0:02:27.6]}
21. c5 {[%clk 0:01:38]} 21... Nxd5 {[%clk 0:02:26.2]} 22. cxd6 {[%clk 0:01:36]}
22... Bxd6 {[%clk 0:02:27.1]} 23. b5 {[%clk 0:01:26.1]} 23... Nb4 {[%clk
0:02:25.1]} 24. a3 {[%clk 0:01:02.7]} 24... Nc2+ {[%clk 0:02:22.5]} 0-1

[Event "*** SCC Grand Prix: Titled Tuesday Blitz"]
[Site "Chess.com"]
[Date "2020.09.29"]
[Round "5"]
[White "OhanyanEminChess"]
[Black "Gajuchess"]
[Result "0-1"]
[WhiteElo "2508"]
[BlackElo "2806"]
[TimeControl "180+1"]
[EndTime "10:51:55 PDT"]
[Termination "Gajuchess won by resignation"]

1. e4 {[%clk 0:02:59.1]} 1... c5 {[%clk 0:02:59.5]} 2. Nf3 {[%clk 0:02:56]} 2...
e6 {[%clk 0:02:58.7]} 3. d4 {[%clk 0:02:54.6]} 3... cxd4 {[%clk 0:02:59.3]} 4.
Nxd4 {[%clk 0:02:54.9]} 4... a6 {[%clk 0:03:00.2]} 5. Nc3 {[%clk 0:02:55.4]}
5... Qc7 {[%clk 0:02:59.6]} 6. Bd3 {[%clk 0:02:55.6]} 6... Nf6 {[%clk
0:02:59.3]} 7. O-O {[%clk 0:02:55.2]} 7... d6 {[%clk 0:02:58.5]} 8. f4 {[%clk
0:02:55.2]} 8... Be7 {[%clk 0:02:58.7]} 9. f5 {[%clk 0:02:54.5]} 9... Nc6 {[%clk
0:02:55.9]} 10. Nxc6 {[%clk 0:02:54.3]} 10... bxc6 {[%clk 0:02:53.6]} 11. fxe6
{[%clk 0:02:55.2]} 11... fxe6 {[%clk 0:02:53.4]} 12. Bg5 {[%clk 0:02:55.6]}
12... O-O {[%clk 0:02:46.9]} 13. Qe2 {[%clk 0:02:47.3]} 13... Qb6+ {[%clk
0:02:11.3]} 14. Be3 {[%clk 0:02:45.6]} 14... Qxb2 {[%clk 0:02:09.8]} 15. Na4
{[%clk 0:02:42.8]} 15... Qa3 {[%clk 0:02:04.8]} 16. Nb6 {[%clk 0:02:42.4]} 16...
Rb8 {[%clk 0:02:04.6]} 17. Nxc8 {[%clk 0:02:42]} 17... Rbxc8 {[%clk 0:02:02.2]}
18. Bxa6 {[%clk 0:02:42.2]} 18... Rb8 {[%clk 0:02:00.7]} 19. Bd3 {[%clk
0:02:38]} 19... d5 {[%clk 0:01:51.5]} 20. e5 {[%clk 0:02:35.7]} 20... Ne4 {[%clk
0:01:49]} 21. Bxe4 {[%clk 0:02:31.5]} 21... dxe4 {[%clk 0:01:49.9]} 22. Rxf8+
{[%clk 0:02:22.7]} 22... Rxf8 {[%clk 0:01:50.8]} 23. Bf2 {[%clk 0:02:22.2]}
23... Bc5 {[%clk 0:01:30.6]} 24. Bxc5 {[%clk 0:02:16.6]} 24... Qxc5+ {[%clk
0:01:31.5]} 25. Kh1 {[%clk 0:02:16.8]} 25... Qxe5 {[%clk 0:01:29.5]} 26. Re1
{[%clk 0:02:15.3]} 26... e3 {[%clk 0:01:26.9]} 27. h3 {[%clk 0:02:12.9]} 27...
Rf2 {[%clk 0:01:27]} 28. Qxe3 {[%clk 0:02:11.4]} 28... Rf1+ {[%clk 0:01:27.2]}
29. Rxf1 {[%clk 0:02:07.6]} 29... Qxe3 {[%clk 0:01:27.2]} 30. a4 {[%clk
0:02:07.7]} 30... Qa3 {[%clk 0:01:25.3]} 0-1